[Event "WYCC 2018 G16"]
[Site "Halkidiki"]
[Date "2018.10.22"]
[Round "4"]
[White "Cramling Bellon, Anna"]
[Black "Simkunaite, Gabija"]
[Result "1/2-1/2"]
[ECO "A52"]
[WhiteElo "2025"]
[BlackElo "1650"]
[Annotator "NA"]
[PlyCount "148"]
[EventDate "2018.10.20"]
[EventType "swiss"]
[EventCountry "GRE"]
[SourceTitle "playchess.com"]
[Source "ChessBase"]
[SourceQuality "1"]
[TimeControl "40/5400+30:1800+30"]

1. d4 {[%emt 0:00:00]} Nf6 {[%emt 0:00:00]} 2. c4 {[%emt 0:00:00]} e5 {[%emt 0:00:34]} 3. dxe5 {[%emt 0:00:05]} Ng4 {[%emt 0:00:15]} 4. Bf4 {[%emt 0:00:35]} Nc6 {[%emt 0:00:42]} 5. Nf3 {[%emt 0:00:06]} Bb4+ {[%emt 0:00:17]} 6. Nbd2 {[%emt 0:00:49]} Qe7 {[%emt 0:00:38]} 7. e3 {[%emt 0:00:45]} Ngxe5 {[%emt 0:00:22]} 8. Nxe5 {[%emt 0:00:12]} Nxe5 {[%emt 0:00:09]} 9. Be2 {[%emt 0:00:39]} d6 {[%emt 0:00:42]} 10. O-O {[%emt 0:00:16]} O-O {[%emt 0:00:38]} 11. Nb3 {[%emt 0:06:05]} Rd8 {[%emt 0:08:36] A52: Budapest Gambit} (11... Nd7 12. a3 Bc5 13. Nxc5 Nxc5 14. b4 Ne6 15. Bg3 a5 16. Qc2 Qf6 17. c5 axb4 18. cxd6 cxd6 19. Qc4 Rxa3 20. Rxa3 bxa3 21. Bxd6 {½-½ (57) Ashwin,J (2495)-Jacobson,B (2472) Charlotte 2018}) 12. Qc2 {[%emt 0:20:38]} Bd7 {[%emt 0:13:44]} 13. a3 {[%emt 0:19:38]} Bc5 {[%emt 0:00:16]} 14. Nxc5 {[%emt 0:00:38]} dxc5 {[%emt 0:00:16]} 15. Qc3 {[%emt 0:10:50]} f6 $146 {[%emt 0:04:46]} ({Predecessor:} 15... Re8 16. Rad1 Bc6 17. Bxe5 Qxe5 18. Qxe5 Rxe5 19. Rd2 {0-1 (60) Avsitidiysky,A-Panayiotou,M Limassol 2009}) 16. b4 {[%emt 0:00:11]} cxb4 {[%emt 0:02:16]} 17. axb4 {[%emt 0:00:12]} Bf5 {[%emt 0:03:41]} 18. Bxe5 {[%emt 0:12:14]} Qxe5 {[%emt 0:00:51]} 19. Qxe5 {[%emt 0:00:08]} fxe5 {[%emt 0:00:04]} 20. Ra5 {[%emt 0:00:15]} Re8 {[%emt 0:01:30]} 21. f4 {[%emt 0:03:21]} Bd7 {[%emt 0:02:07]} 22. Rd1 {[%emt 0:16:23]} Bc6 {[%emt 0:03:25]} 23. Rxe5 {[%emt 0:00:57]} Rxe5 {[%emt 0:02:57]} 24. fxe5 {[%emt 0:00:01]} Re8 {[%emt 0:02:08]} 25. Bh5 {[%emt 0:06:55]} g6 {[%emt 0:00:26]} 26. Bf3 {[%emt 0:00:01]} Bxf3 {[%emt 0:04:50]} 27. gxf3 {[%emt 0:00:01]} Rxe5 {[%emt 0:00:10]} 28. Rd7 {[%emt 0:00:18]} b5 {[%emt 0:01:25]} 29. cxb5 {[%emt 0:01:38]} Rxb5 {[%emt 0:00:58]} 30. Rxc7 {[%emt 0:00:07]} a6 {[%emt 0:00:50]} 31. Rc6 {[%emt 0:00:41]} Rxb4 {[%emt 0:00:24]} 32. Rxa6 $16 {[%emt 0:00:05]} Rb2 {[%emt 0:00:06]} 33. Ra7 {[%emt 0:00:15]} g5 {[%emt 0:00:56]} 34. h3 {[%emt 0:00:58]} h6 {[%emt 0:00:16]} 35. e4 {[%emt 0:00:06]} Rc2 {[%emt 0:01:17]} 36. Rb7 {[%emt 0:00:09]} Ra2 {[%emt 0:00:35]} 37. Rc7 {[%emt 0:00:37]} Rb2 {[%emt 0:00:09]} 38. Rd7 {[%emt 0:00:30]} Rc2 39. Re7 {[%emt 0:00:54]} Rb2 {[%emt 0:00:39]} 40. Rc7 {[%emt 0:00:00]} Ra2 41. Rc1 Kf7 {[%emt 0:04:27]} 42. Rf1 {[%emt 0:10:32]} Ke6 {[%emt 0:00:09]} 43. Rf2 {[%emt 0:00:04]} Ra1+ {[%emt 0:00:13]} 44. Kg2 {[%emt 0:00:06]} Ke5 {[%emt 0:00:36]} 45. Kg3 h5 46. h4 {[%emt 0:13:43]} g4 {[%emt 0:05:22]} 47. fxg4 {[%emt 0:04:07]} hxg4 {[%emt 0:01:28]} 48. Kxg4 {[%emt 0:02:59]} Rg1+ {[%emt 0:00:36]} 49. Kf3 {[%emt 0:00:30]} Rh1 {[%emt 0:00:14]} 50. Rg2 {[%emt 0:03:41]} Rxh4 {[%emt 0:00:10]} 51. Rg5+ {[%emt 0:00:07]} Ke6 {[%emt 0:00:14]} 52. Ke3 {[%emt 0:00:29]} Rh1 {[%emt 0:00:09]} 53. Kd3 {[%emt 0:01:06]} Rd1+ {[%emt 0:00:16]} 54. Ke2 {[%emt 0:00:13]} Rh1 {[%emt 0:00:08]} 55. Rf5 {[%emt 0:00:47]} Ra1 {[%emt 0:00:24]} 56. Rd5 {[%emt 0:00:27]} Rh1 {[%emt 0:00:15]} 57. Ke3 {[%emt 0:00:45]} Re1+ {[%emt 0:00:06]} 58. Kf3 {[%emt 0:00:27]} Rf1+ {[%emt 0:00:06]} 59. Ke2 {[%emt 0:00:14]} Rh1 {[%emt 0:00:05]} 60. Kd2 {[%emt 0:00:08]} Ra1 {[%emt 0:00:08]} 61. Rb5 {[%emt 0:00:27]} Rh1 {[%emt 0:00:15]} 62. Kd3 {[%emt 0:01:05]} Rd1+ {[%emt 0:00:09]} 63. Ke3 {[%emt 0:00:43]} Re1+ {[%emt 0:00:05]} 64. Kf3 {[%emt 0:00:06]} Rf1+ {[%emt 0:00:05]} 65. Ke2 {[%emt 0:00:09]} Ra1 {[%emt 0:00:04]} 66. Rc5 {[%emt 0:00:43]} Rh1 {[%emt 0:00:19]} 67. Kd2 {[%emt 0:00:44]} Ra1 {[%emt 0:00:10]} 68. Kc2 {[%emt 0:00:13]} Rh1 {[%emt 0:00:11]} 69. Rd5 {[%emt 0:00:57]} Re1 {[%emt 0:00:16]} 70. Kd3 {[%emt 0:00:19]} Rd1+ {[%emt 0:00:09]} 71. Kc4 {[%emt 0:00:14]} Rc1+ {[%emt 0:00:03]} 72. Kd4 {[%emt 0:00:40]} Rd1+ {[%emt 0:00:09]} 73. Kc5 {[%emt 0:00:06]} Rc1+ {[%emt 0:00:04]} 74. Kb5 {[%emt 0:01:15]} Re1 {[%emt 0:00:08]} 1/2-1/2

[Event "WYCC 2018 G16"]
[Site "Halkidiki"]
[Date "2018.10.22"]
[Round "4"]
[White "Sosa Suarez, Carla Cristina"]
[Black "Muetsch, Annmarie"]
[Result "1/2-1/2"]
[ECO "C54"]
[WhiteElo "2025"]
[BlackElo "2206"]
[Annotator "NA"]
[PlyCount "72"]
[EventDate "2018.10.20"]
[EventType "swiss"]
[EventCountry "GRE"]
[SourceTitle "playchess.com"]
[Source "ChessBase"]
[SourceQuality "1"]
[TimeControl "40/5400+30:1800+30"]

1. e4 {[%emt 0:00:00]} e5 {[%emt 0:00:00]} 2. Nf3 {[%emt 0:00:00]} Nc6 {[%emt 0:00:00]} 3. Bc4 {[%emt 0:00:00]} Bc5 {[%emt 0:00:00]} 4. c3 {[%emt 0:00:00]} Nf6 {[%emt 0:00:04]} 5. d3 {[%emt 0:00:00]} a6 {[%emt 0:00:16]} 6. O-O {[%emt 0:01:44]} Ba7 {[%emt 0:01:39]} 7. Bb3 {[%emt 0:01:24]} d6 {[%emt 0:00:45]} 8. Be3 {[%emt 0:01:40]} O-O {[%emt 0:06:39]} 9. Nbd2 {[%emt 0:04:33]} h6 {[%emt 0:06:32]} 10. Re1 {[%emt 0:07:28]} Nh5 {[%emt 0:07:02]} 11. Nf1 {[%emt 0:17:45]} Qf6 {[%emt 0:06:16]} 12. Ng3 {[%emt 0:22:56]} Bg4 {[%emt 0:04:08]} 13. h3 {[%emt 0:14:55]} Bxf3 {[%emt 0:01:07]} 14. Nxh5 {[%emt 0:01:58]} Bxh5 {[%emt 0:02:46]} 15. Qxh5 {[%emt 0:00:10]} Ne7 {[%emt 0:02:16]} 16. Qg4 {[%emt 0:05:46]} Kh7 $16 {[%emt 0:05:54]} (16... a5 $14) 17. Rf1 {[%emt 0:06:58]} a5 {[%emt 0:25:30]} 18. a4 {[%emt 0:03:47]} c6 {[%emt 0:01:52]} 19. Bxa7 {[%emt 0:04:19]} Rxa7 {[%emt 0:00:06]} 20. f4 {[%emt 0:01:08]} Kg8 {[%emt 0:10:45]} 21. fxe5 {[%emt 0:02:57]} Qxe5 {[%emt 0:00:14]} 22. d4 {[%emt 0:03:06]} Qg5 {[%emt 0:00:26]} 23. Qd7 {[%emt 0:01:37]} d5 {[%emt 0:04:02]} 24. Rae1 {[%emt 0:02:25]} Raa8 {[%emt 0:03:34]} 25. exd5 {[%emt 0:00:52]} Nxd5 {[%emt 0:00:16]} 26. Bxd5 {[%emt 0:01:26]} Qxd5 {[%emt 0:00:43]} 27. Qxd5 {[%emt 0:01:11]} cxd5 {[%emt 0:00:07]} 28. Re7 {[%emt 0:00:17]} b5 {[%emt 0:05:38]} 29. Rf5 {[%emt 0:01:53]} bxa4 {[%emt 0:02:09]} 30. Rxd5 {[%emt 0:00:23]} Rfb8 {[%emt 0:00:54]} 31. Rdd7 {[%emt 0:04:22]} Rxb2 32. Rxf7 {[%emt 0:00:08]} a3 {[%emt 0:02:07]} 33. Rxg7+ {[%emt 0:00:06]} Kh8 {[%emt 0:00:48]} 34. Rh7+ {[%emt 0:00:05]} Kg8 {[%emt 0:00:03]} 35. Rhg7+ {[%emt 0:00:05]} Kh8 {[%emt 0:00:06]} 36. Rh7+ {[%emt 0:00:01]} Kg8 {[%emt 0:00:05]} 1/2-1/2

[Event "WYCC 2018 G16"]
[Site "Halkidiki"]
[Date "2018.10.22"]
[Round "4"]
[White "Nestorovic, Katarina"]
[Black "Mikic, Ivana"]
[Result "1-0"]
[ECO "C24"]
[WhiteElo "2015"]
[BlackElo "1783"]
[Annotator "NA"]
[PlyCount "59"]
[EventDate "2018.10.20"]
[EventType "swiss"]
[EventCountry "GRE"]
[SourceTitle "playchess.com"]
[Source "ChessBase"]
[SourceQuality "1"]
[TimeControl "40/5400+30:1800+30"]

1. e4 {[%emt 0:00:00]} e5 {[%emt 0:00:00]} 2. Bc4 {[%emt 0:00:00]} Nf6 {[%emt 0:00:00]} 3. d3 {[%emt 0:00:01]} Bc5 {[%emt 0:00:17]} 4. Nc3 {[%emt 0:00:21]} O-O {[%emt 0:00:20]} 5. f4 {[%emt 0:00:39]} exf4 {[%emt 0:02:56]} 6. Bxf4 {[%emt 0:00:15]} d6 {[%emt 0:01:32]} 7. Nf3 {[%emt 0:01:01]} Be6 {[%emt 0:02:03]} 8. Bb3 {[%emt 0:01:43]} Nbd7 {[%emt 0:02:33]} 9. Qd2 {[%emt 0:01:46]} Qe7 {[%emt 0:07:59]} 10. O-O-O {[%emt 0:02:51]} Ng4 $18 {[%emt 0:04:27]} (10... Bxb3 $11 11. axb3 Rfe8) 11. d4 {[%emt 0:06:56]} Bb6 {[%emt 0:06:57]} 12. d5 {[%emt 0:05:01]} Nf2 {[%emt 0:01:05]} 13. dxe6 {[%emt 0:02:21]} fxe6 {[%emt 0:00:20]} 14. Rhf1 {[%emt 0:14:11]} Nxd1 {[%emt 0:00:23]} 15. Rxd1 {[%emt 0:00:30]} Nc5 {[%emt 0:04:58]} 16. Bc4 {[%emt 0:02:07]} Kh8 {[%emt 0:05:15]} 17. Kb1 {[%emt 0:03:04]} Qf6 {[%emt 0:06:48]} 18. Be3 {[%emt 0:06:37]} Qg6 {[%emt 0:06:17]} 19. Ng5 {[%emt 0:11:35]} Rae8 {[%emt 0:06:08]} 20. h4 {[%emt 0:08:27]} Nxe4 {[%emt 0:14:25]} 21. Ncxe4 {[%emt 0:01:47]} Bxe3 {[%emt 0:00:18]} 22. Qxe3 {[%emt 0:00:42]} d5 {[%emt 0:00:41]} 23. Bb5 {[%emt 0:05:36]} c6 {[%emt 0:09:33]} 24. Nd6 {[%emt 0:01:03]} Re7 {[%emt 0:01:11]} 25. Bd3 {[%emt 0:02:09]} Qh5 {[%emt 0:01:17]} 26. Rh1 {[%emt 0:01:45]} h6 {[%emt 0:03:25]} 27. Nf3 {[%emt 0:03:36]} Qg4 {[%emt 0:02:21]} 28. Ne5 {[%emt 0:01:27]} d4 {[%emt 0:03:10]} 29. Qd2 {[%emt 0:01:08]} Qg3 {[%emt 0:00:59]} 30. Ng6+ {[%emt 0:00:18]} 1-0

[Event "WYCC 2018 G16"]
[Site "Halkidiki"]
[Date "2018.10.22"]
[Round "4"]
[White "Bogdanic, Katarina"]
[Black "Yurasova, Daria"]
[Result "0-1"]
[ECO "A13"]
[WhiteElo "2014"]
[BlackElo "2193"]
[Annotator "NA"]
[PlyCount "70"]
[EventDate "2018.10.20"]
[EventType "swiss"]
[EventCountry "GRE"]
[SourceTitle "playchess.com"]
[Source "ChessBase"]
[SourceQuality "1"]
[TimeControl "40/5400+30:1800+30"]

1. c4 {[%emt 0:00:00]} e6 {[%emt 0:00:31]} 2. Nf3 {[%emt 0:00:00]} d5 {[%emt 0:00:09]} 3. g3 {[%emt 0:00:00]} d4 {[%emt 0:00:14]} 4. d3 {[%emt 0:00:00]} Nf6 {[%emt 0:00:20]} 5. Bg2 {[%emt 0:00:13]} c5 {[%emt 0:00:13]} 6. O-O {[%emt 0:00:31]} Nc6 {[%emt 0:00:05]} 7. e3 {[%emt 0:00:59] A09: Réti Opening: 1 Nf3 d5 2 c4} Bd6 {[%emt 0:00:24]} 8. Na3 {[%emt 0:01:32]} (8. a3 a5 9. Nbd2 O-O 10. e4 e5 11. h3 Bd7 12. Nh2 Qc8 13. f4 Bxh3 14. f5 Bxg2 15. Kxg2 {½-½ (31) Aronian,L (2780)-Yilmaz,M (2633) Batumi 2018}) 8... O-O {[%emt 0:00:14]} 9. exd4 {[%emt 0:03:22]} cxd4 {[%emt 0:00:36]} 10. Nc2 {[%emt 0:00:36]} e5 {[%emt 0:00:01]} 11. Re1 {[%emt 0:01:53]} Re8 {[%emt 0:01:44]} 12. Bg5 {[%emt 0:00:52]} Bf5 {[%emt 0:07:14]} 13. b4 {[%emt 0:16:48]} a6 {[%emt 0:02:04]} 14. a4 $146 {[%emt 0:04:10]} ({Predecessor:} 14. Nh4 Bd7 15. c5 Bf8 16. Qf3 {1-0 (57) Pavlov,S (2485)-Polivanov,A (2383) Batumi 2018}) 14... h6 {[%emt 0:14:43]} 15. Nh4 {[%emt 0:03:02]} Bxd3 {[%emt 0:25:13]} 16. Bxc6 {[%emt 0:35:20]} Bxc2 {[%emt 0:06:58]} 17. Qxc2 {[%emt 0:04:46]} bxc6 {[%emt 0:00:19]} 18. Bxf6 {[%emt 0:00:21]} Qxf6 {[%emt 0:00:07]} 19. b5 {[%emt 0:01:38]} axb5 {[%emt 0:10:47]} 20. axb5 {[%emt 0:00:19]} Rxa1 {[%emt 0:04:54]} 21. Rxa1 {[%emt 0:00:05]} cxb5 {[%emt 0:00:07]} 22. cxb5 {[%emt 0:00:26]} e4 {[%emt 0:00:20]} 23. Ra6 {[%emt 0:01:13]} e3 {[%emt 0:01:54]} 24. fxe3 {[%emt 0:01:03]} dxe3 {[%emt 0:00:38]} 25. Qe2 {[%emt 0:00:39]} Qe5 {[%emt 0:04:36]} 26. Nf3 $19 {[%emt 0:01:02]} Qd5 {[%emt 0:00:37]} 27. Ra2 {[%emt 0:02:45]} Bc5 {[%emt 0:01:39]} 28. Kf1 {[%emt 0:02:04]} Re6 {[%emt 0:02:01]} 29. Ra6 {[%emt 0:01:05]} Re4 {[%emt 0:00:55]} 30. Rc6 {[%emt 0:03:17]} Rc4 {[%emt 0:01:15]} 31. Kg2 {[%emt 0:01:23]} Qe4 {[%emt 0:01:34]} 32. Kg1 {[%emt 0:05:27]} Rc1+ {[%emt 0:00:07]} 33. Ne1 {[%emt 0:00:30]} Qb1 {[%emt 0:00:27]} 34. Rc8+ {[%emt 0:01:28]} Kh7 {[%emt 0:00:18]} 35. Rxc5 {[%emt 0:00:18]} Rxe1+ {[%emt 0:00:09]} 0-1

[Event "WYCC 2018 G16"]
[Site "Halkidiki"]
[Date "2018.10.22"]
[Round "4"]
[White "Duson, Robin"]
[Black "Serikbay, Assel"]
[Result "0-1"]
[ECO "D15"]
[WhiteElo "1999"]
[BlackElo "2166"]
[Annotator "NA"]
[PlyCount "72"]
[EventDate "2018.10.20"]
[EventType "swiss"]
[EventCountry "GRE"]
[SourceTitle "playchess.com"]
[Source "ChessBase"]
[SourceQuality "1"]
[TimeControl "40/5400+30:1800+30"]

1. d4 {[%emt 0:00:00]} d5 {[%emt 0:00:00]} 2. c4 {[%emt 0:00:00]} c6 {[%emt 0:00:00]} 3. Nc3 {[%emt 0:00:04]} Nf6 {[%emt 0:00:00]} 4. Nf3 {[%emt 0:00:19]} a6 {[%emt 0:00:00]} 5. c5 {[%emt 0:00:24]} Nbd7 {[%emt 0:00:09]} 6. Bf4 {[%emt 0:00:38]} Nh5 {[%emt 0:00:24]} 7. Bd2 {[%emt 0:00:19]} e5 {[%emt 0:00:56] D15: Slav Defence: 4 Nc3 a6 and gambit lines after 4 Nc3 dxc4} 8. Nxe5 {[%emt 0:10:04]} Nxe5 {[%emt 0:00:10]} 9. dxe5 {[%emt 0:00:08]} Qe7 {[%emt 0:00:53]} 10. Be3 {[%emt 0:03:32]} Qxe5 {[%emt 0:01:41]} 11. Bd4 {[%emt 0:00:50]} Qg5 {[%emt 0:09:28]} 12. e3 {[%emt 0:04:50]} Nf6 $146 {[%emt 0:06:17]} ({Predecessor:} 12... Be7 13. h4 Qg6 14. Be2 Nf6 15. h5 Qxg2 {½-½ (26) Wojtaszek,R (2630)-Morozevich,A (2747) Pamplona 2006}) 13. Qc2 {[%emt 0:09:52]} Be7 {[%emt 0:06:51]} 14. O-O-O {[%emt 0:02:48]} O-O {[%emt 0:01:42]} 15. Bd3 {[%emt 0:05:17]} h5 {[%emt 0:13:01]} 16. h4 {[%emt 0:12:04]} Qh6 {[%emt 0:06:32]} 17. Na4 {[%emt 0:05:14]} Be6 {[%emt 0:12:31]} 18. f3 {[%emt 0:05:52]} Nd7 {[%emt 0:03:52]} 19. g4 {[%emt 0:07:28]} hxg4 {[%emt 0:01:45]} 20. fxg4 {[%emt 0:04:08]} Bxg4 {[%emt 0:02:07]} 21. Rdf1 $17 {[%emt 0:02:14]} f6 {[%emt 0:19:29]} 22. Bf5 {[%emt 0:03:12]} Ne5 {[%emt 0:03:30]} 23. Bxg4 {[%emt 0:02:24]} Nxg4 {[%emt 0:00:04]} 24. Qf5 {[%emt 0:00:30]} Ne5 {[%emt 0:00:43]} 25. Rf4 {[%emt 0:07:44]} Rae8 {[%emt 0:04:12]} 26. Rg1 {[%emt 0:05:35]} Qh7 {[%emt 0:02:13]} 27. Qe6+ {[%emt 0:01:42]} Kh8 {[%emt 0:03:07]} 28. Bxe5 {[%emt 0:02:21]} Bxc5 {[%emt 0:00:25]} 29. Qh3 {[%emt 0:00:56]} fxe5 {[%emt 0:01:04]} 30. Rxf8+ {[%emt 0:02:30]} Bxf8 {[%emt 0:00:03]} 31. Qd7 {[%emt 0:00:21]} Re7 {[%emt 0:00:53]} 32. Qd8 {[%emt 0:00:58]} Rf7 {[%emt 0:00:11]} 33. Nc5 {[%emt 0:00:27]} Rf2 {[%emt 0:00:22]} 34. e4 {[%emt 0:00:32]} Qh6+ {[%emt 0:00:54]} 35. Rg5 {[%emt 0:00:38]} Qxh4 {[%emt 0:00:22]} 36. Ne6 {[%emt 0:01:29]} Qh1+ {[%emt 0:00:06]} 0-1

[Event "WYCC 2018 G16"]
[Site "Halkidiki"]
[Date "2018.10.22"]
[Round "4"]
[White "Zhang, Xiao"]
[Black "Schulze, Lara"]
[Result "1-0"]
[ECO "E06"]
[WhiteElo "1980"]
[BlackElo "2122"]
[Annotator "NA"]
[PlyCount "77"]
[EventDate "2018.10.20"]
[EventType "swiss"]
[EventCountry "GRE"]
[SourceTitle "playchess.com"]
[Source "ChessBase"]
[SourceQuality "1"]
[TimeControl "40/5400+30:1800+30"]

1. d4 {[%emt 0:00:00]} Nf6 {[%emt 0:00:00]} 2. g3 {[%emt 0:00:00]} d5 {[%emt 0:00:57]} 3. Bg2 {[%emt 0:00:00]} e6 {[%emt 0:00:06]} 4. c4 {[%emt 0:00:06]} Be7 {[%emt 0:00:37]} 5. Nf3 {[%emt 0:00:09]} O-O {[%emt 0:00:15]} 6. Nc3 {[%emt 0:00:07]} dxc4 {[%emt 0:04:55]} 7. Ne5 {[%emt 0:00:16]} Nc6 {[%emt 0:02:49]} 8. Bxc6 {[%emt 0:00:15] E06: Closed Catalan: Early deviations} bxc6 {[%emt 0:00:04]} 9. Nxc6 {[%emt 0:00:05]} Qe8 {[%emt 0:00:42]} 10. Nxe7+ {[%emt 0:00:10]} Qxe7 {[%emt 0:00:01]} 11. Qa4 {[%emt 0:00:43]} e5 {[%emt 0:21:10]} (11... c5 12. dxc5 Qxc5 13. Be3 Qc7 14. O-O-O Ng4 15. Rd2 Nxe3 16. fxe3 Rb8 17. Rhd1 a5 18. Kb1 h6 19. Ka1 Rb4 {1-0 (49) Caruana,F (2822)-Nakamura,H (2777) Saint Louis 2018}) 12. dxe5 {[%emt 0:05:43]} Qxe5 {[%emt 0:00:57]} 13. Bf4 {[%emt 0:06:13]} Qe6 {[%emt 0:06:48]} 14. O-O {[%emt 0:04:22]} Ne4 {[%emt 0:10:55]} 15. Qc2 $146 {[%emt 0:09:42]} ({Predecessor:} 15. Rfe1 Rb8 16. Qc2 Bb7 17. Nxe4 Bxe4 18. Qc3 Ba8 19. f3 Qb6+ {1-0 (93) Lahlum,H (2307)-Pagliafora,A (2263) ICCF email 2013}) 15... Nxc3 {[%emt 0:06:14]} 16. bxc3 {[%emt 0:01:52]} Re8 {[%emt 0:03:07]} 17. Rfe1 {[%emt 0:02:59]} Bb7 {[%emt 0:01:02]} 18. f3 {[%emt 0:01:38]} h6 {[%emt 0:05:26]} 19. g4 {[%emt 0:13:19]} Rad8 {[%emt 0:10:04]} 20. Rab1 {[%emt 0:02:17]} Bc6 {[%emt 0:05:17]} 21. Qf5 {[%emt 0:16:08]} Qe7 {[%emt 0:05:10]} 22. Qa5 {[%emt 0:02:26]} g5 {[%emt 0:04:34]} 23. Bg3 {[%emt 0:03:35]} Rd2 $11 {[%emt 0:01:27]} 24. Qa6 {[%emt 0:12:34]} Qe6 {[%emt 0:03:05]} 25. Bf2 {[%emt 0:00:44]} Bd7 {[%emt 0:04:39]} 26. Qxa7 {[%emt 0:00:44]} Qc6 {[%emt 0:01:51]} 27. Rb7 {[%emt 0:02:38]} Qd5 {[%emt 0:00:46]} 28. Rxc7 {[%emt 0:01:25]} Rd1 {[%emt 0:00:20]} 29. Kg2 {[%emt 0:01:18]} Be6 {[%emt 0:00:37]} 30. Qa4 {[%emt 0:01:04]} Rd8 {[%emt 0:00:02]} 31. Rxd1 {[%emt 0:02:19]} Qxd1 {[%emt 0:00:01]} 32. Qxd1 {[%emt 0:00:07]} Rxd1 {[%emt 0:00:05]} 33. Bd4 {[%emt 0:00:19]} Rd2 {[%emt 0:00:57]} 34. Ra7 {[%emt 0:00:05]} f5 {[%emt 0:00:51]} 35. Re7 {[%emt 0:04:15]} Bf7 {[%emt 0:01:05]} 36. gxf5 {[%emt 0:00:27]} Rxa2 {[%emt 0:00:10]} 37. Kg3 {[%emt 0:00:19]} Ra1 {[%emt 0:00:33]} 38. Rc7 {[%emt 0:00:17]} Ra8 {[%emt 0:00:30]} 39. e4 {[%emt 0:00:06]} 1-0

[Event "WYCC 2018 G16"]
[Site "Halkidiki"]
[Date "2018.10.22"]
[Round "4"]
[White "Sanskriti Goyal"]
[Black "Grigorieva, Yulia"]
[Result "1/2-1/2"]
[ECO "A01"]
[WhiteElo "1971"]
[BlackElo "2112"]
[Annotator "NA"]
[PlyCount "131"]
[EventDate "2018.10.20"]
[EventType "swiss"]
[EventCountry "GRE"]
[SourceTitle "playchess.com"]
[Source "ChessBase"]
[SourceQuality "1"]
[TimeControl "40/5400+30:1800+30"]

1. b3 {[%emt 0:00:00]} e5 {[%emt 0:00:00]} 2. Bb2 {[%emt 0:00:00]} Nc6 {[%emt 0:00:16]} 3. e3 {[%emt 0:00:28]} d5 {[%emt 0:02:37]} 4. Bb5 {[%emt 0:00:42]} Bd6 {[%emt 0:01:12]} 5. f4 {[%emt 0:00:20]} f6 {[%emt 0:00:40]} 6. Nf3 {[%emt 0:15:19]} exf4 {[%emt 0:23:55]} 7. O-O {[%emt 0:00:28]} Bg4 {[%emt 0:08:33]} 8. exf4 {[%emt 0:22:46]} Nge7 {[%emt 0:10:34]} 9. Qe1 {[%emt 0:14:35]} Qd7 {[%emt 0:08:44]} 10. Nd4 {[%emt 0:14:28]} O-O-O {[%emt 0:04:04]} 11. Nc3 {[%emt 0:02:16]} a6 {[%emt 0:08:36]} 12. Bxc6 {[%emt 0:01:39]} Nxc6 {[%emt 0:00:20]} 13. Na4 {[%emt 0:02:43]} Rhg8 {[%emt 0:09:44]} 14. Qg3 {[%emt 0:02:13]} Nxd4 {[%emt 0:02:56]} 15. Bxd4 {[%emt 0:00:04]} Kb8 {[%emt 0:07:25]} 16. Qc3 {[%emt 0:04:06]} g5 {[%emt 0:04:34]} 17. Bxf6 {[%emt 0:02:35]} gxf4 {[%emt 0:00:14]} 18. Bxd8 {[%emt 0:00:34]} Qxd8 {[%emt 0:00:35]} 19. Qd4 {[%emt 0:08:14]} Qg5 {[%emt 0:02:09]} 20. h4 {[%emt 0:01:25]} Qxh4 {[%emt 0:01:21]} 21. Rxf4 {[%emt 0:00:26]} Qg3 {[%emt 0:01:17]} 22. Rxg4 {[%emt 0:04:42]} Rxg4 {[%emt 0:00:29]} 23. Qxd5 {[%emt 0:00:16]} Qh2+ {[%emt 0:00:32]} 24. Kf2 {[%emt 0:00:02]} Qg3+ {[%emt 0:00:35]} 25. Ke2 {[%emt 0:00:39]} Rf4 {[%emt 0:00:31]} 26. Rf1 {[%emt 0:01:23]} Qg4+ {[%emt 0:00:24]} 27. Rf3 {[%emt 0:00:32]} Qxg2+ {[%emt 0:00:29]} 28. Ke3 {[%emt 0:00:01]} Qg1+ {[%emt 0:00:32]} 29. Kd3 {[%emt 0:00:02]} Qg6+ {[%emt 0:00:28]} 30. Ke3 {[%emt 0:01:26]} Rxf3+ {[%emt 0:00:31]} 31. Kxf3 {[%emt 0:00:31]} h5 {[%emt 0:00:36]} 32. Qe4 {[%emt 0:00:29]} Qg3+ {[%emt 0:00:26]} 33. Ke2 {[%emt 0:00:03]} h4 {[%emt 0:00:24]} 34. Qe8+ {[%emt 0:00:12]} Ka7 {[%emt 0:00:00]} 35. Qe3+ {[%emt 0:00:16]} Qxe3+ {[%emt 0:00:52]} 36. Kxe3 {[%emt 0:00:24]} h3 {[%emt 0:00:39]} 37. Kf3 {[%emt 0:00:01]} b5 {[%emt 0:00:34]} 38. Nc3 {[%emt 0:00:09]} Kb6 {[%emt 0:00:26]} 39. Ne4 {[%emt 0:01:09]} h2 {[%emt 0:00:12]} 40. Kg2 {[%emt 0:00:00]} Bf4 {[%emt 0:00:00]} 41. Nf6 {[%emt 0:09:29]} Kc5 {[%emt 0:10:59]} 42. c3 {[%emt 0:03:14]} Kc6 {[%emt 0:02:19]} 43. d3 {[%emt 0:04:05]} Be5 {[%emt 0:04:04]} 44. Ne4 {[%emt 0:02:31]} Kd5 {[%emt 0:02:45]} 45. b4 {[%emt 0:01:51]} c6 {[%emt 0:04:02]} 46. Kh1 {[%emt 0:04:20]} Ke6 {[%emt 0:04:57]} 47. Nc5+ {[%emt 0:00:22]} Kd5 {[%emt 0:01:44]} 48. Nxa6 {[%emt 0:04:41]} Bxc3 {[%emt 0:00:54]} 49. Kxh2 {[%emt 0:00:03]} Be5+ {[%emt 0:01:59]} 50. Kg2 {[%emt 0:00:01]} Bd6 {[%emt 0:00:42]} 51. Kf3 {[%emt 0:02:48]} Kd4 {[%emt 0:00:41]} 52. Ke2 {[%emt 0:00:02]} Kc3 {[%emt 0:00:40]} 53. a3 {[%emt 0:00:49]} Kb3 {[%emt 0:01:25]} 54. d4 {[%emt 0:00:57]} Kxa3 {[%emt 0:00:28]} 55. Kd3 {[%emt 0:00:08]} Bxb4 {[%emt 0:00:46]} 56. Nb8 {[%emt 0:00:10]} c5 {[%emt 0:00:29]} 57. dxc5 {[%emt 0:00:15]} Bxc5 {[%emt 0:00:03]} 58. Nc6 {[%emt 0:00:08]} Kb2 {[%emt 0:00:39]} 59. Na5 {[%emt 0:01:20]} Bb4 {[%emt 0:00:39]} 60. Nc6 {[%emt 0:00:13]} Bc3 {[%emt 0:00:22]} 61. Ke4 {[%emt 0:01:00]} Ka3 {[%emt 0:00:29]} 62. Kd3 {[%emt 0:00:43]} Bf6 {[%emt 0:00:38]} 63. Na7 {[%emt 0:00:14]} b4 {[%emt 0:00:05]} 64. Nc6 {[%emt 0:00:02]} b3 {[%emt 0:00:17]} 65. Na5 {[%emt 0:00:02]} b2 {[%emt 0:00:11]} 66. Nc4+ {[%emt 0:00:01]} 1/2-1/2